bitfinex-derivatives/quotes_BTCF0:USTF0_20241120
["timestamp","ask_amount","ask_price","bid_price","bid_amount"]
[1732103721277,0.00667445,93591.0,93590.0,0.60415883]
[1732103721580,0.00667416,93591.0,93590.0,0.55079083]
[1732103721780,0.00667416,93591.0,93590.0,0.60415883]
[1732103722173,0.053363,93600.0,93599.0,0.053363]
[1732103722480,0.0600371,93600.0,93599.0,0.3608]
[1732103725194,0.053367,93591.0,93590.0,0.3608]
[1732103725484,0.06004164,93591.0,93590.0,0.3608]
[1732103725890,0.07665056,93591.0,93590.0,0.3608]
[1732103726593,0.06004164,93591.0,93590.0,0.3608]
[1732103727288,0.07665056,93591.0,93590.0,0.3608]
[1732103727586,0.06004164,93591.0,93590.0,0.3608]
[1732103727993,0.053373,93581.0,93580.0,9.696e-05]
[1732103728181,0.06004764,93581.0,93580.0,9.696e-05]
[1732103728987,0.06004764,93581.0,93580.0,0.03857302]
[1732103732192,0.42084764,93581.0,93580.0,0.03857302]
[1732103732392,0.15568194,93575.0,93574.0,1.22801]
[1732103732695,0.16235854,93575.0,93574.0,1.22725]
[1732103733394,0.053384,93562.0,93561.0,0.005]
[1732103733586,0.053384,93562.0,93548.0,0.005]
[1732103733897,0.053389,93553.0,93548.0,0.005]
[1732103734096,0.053389,93553.0,93538.0,0.0054]
[1732103734097,0.053389,93553.0,93539.0,0.005]
[1732103734395,0.053389,93553.0,93534.0,0.36156]
[1732103734396,0.053398,93537.0,93534.0,0.3608]
[1732103734579,0.3608,93543.0,93534.0,0.40071216]
[1732103735181,0.053398,93538.0,93534.0,0.40071216]
[1732103735399,0.005,93553.0,93535.0,0.10230594]
[1732103735598,0.005,93559.0,93542.0,0.10230594]
[1732103735790,0.10730594,93565.0,93545.0,0.3608]
[1732103735978,0.0321,93568.0,93550.0,0.10230594]
[1732103736179,0.053388,93555.0,93551.0,0.05339]
[1732103736397,0.0321,93568.0,93545.0,0.3608]
[1732103736398,0.053389,93553.0,93548.0,0.053392]
[1732103736696,0.15568794,93565.0,93545.0,0.3608]
[1732103736697,0.10230594,93565.0,93545.0,0.3608]
[1732103736995,0.053393,93546.0,93545.0,0.3608]
[1732103737189,0.053393,93546.0,93545.0,0.39982331]
[1732103738096,0.053396,93540.0,93536.0,0.15570494]
[1732103738497,0.053398,93538.0,93536.0,0.15570494]
[1732103738797,0.053398,93538.0,93536.0,0.053399]
[1732103738997,0.053398,93538.0,93536.0,0.09252412]
[1732103739387,0.053398,93537.0,93536.0,0.09252412]
[1732103740600,0.053398,93537.0,93536.0,0.03912512]
[1732103740902,0.053398,93537.0,93536.0,0.02137098]
[1732103741603,0.053399,93535.0,93534.0,0.3608]
[1732103742498,0.053399,93535.0,93523.0,0.005]
[1732103742808,0.053399,93535.0,93519.0,0.086008]
[1732103742809,0.053403,93529.0,93519.0,0.086008]
[1732103743004,0.053403,93529.0,93527.0,0.3608]
[1732103749407,0.053395,93542.0,93539.0,0.053397]
[1732103749610,0.053393,93547.0,93542.0,0.053395]
[1732103749911,0.49172,93554.0,93535.0,0.005]
[1732103749912,0.053396,93541.0,93535.0,0.005]
[1732103750094,0.49228001,93554.0,93528.0,0.00511203]
[1732103750095,0.053403,93529.0,93528.0,0.00511203]
[1732103750300,0.053403,93529.0,93528.0,0.00011203]
[1732103752407,0.15570894,93529.0,93528.0,0.00011203]
[1732103753797,0.053403,93529.0,93528.0,0.00011203]
[1732103755301,0.15570894,93529.0,93528.0,0.00011203]
[1732103755809,0.053399,93537.0,93533.0,0.0534]
[1732103756008,0.053399,93537.0,93528.0,0.00011203]
[1732103756009,0.053395,93542.0,93539.0,0.053397]
[1732103756499,0.01656914,93545.0,93544.0,0.053394]
[1732103756698,0.01656914,93545.0,93544.0,0.414194]
[1732103757496,0.02324745,93545.0,93544.0,0.053394]
[1732103757706,0.02324745,93545.0,93544.0,0.414194]
[1732103758909,0.01656914,93545.0,93544.0,0.414194]
[1732103759105,0.00667814,93545.0,93544.0,0.414194]
[1732103759506,0.00667814,93545.0,93544.0,0.053394]
[1732103760008,0.06007214,93545.0,93544.0,0.414194]
[1732103760315,0.06007214,93545.0,93544.0,0.08480299]
[1732103760511,0.06007233,93545.0,93544.0,0.08480299]
[1732103761108,0.00667833,93545.0,93544.0,0.44560299]
[1732103762204,0.053388,93555.0,93544.0,0.44560299]
[1732103762205,0.01435446,93562.0,93558.0,0.053386]
[1732103762401,0.00160343,93580.0,93566.0,0.10230594]
[1732103762615,0.05497743,93580.0,93579.0,0.3608]
[1732103762916,0.05497743,93580.0,93579.0,0.414174]
[1732103763106,0.05497743,93580.0,93579.0,0.3608]
[1732103764215,0.05497743,93580.0,93565.0,0.005]
[1732103764216,0.053382,93566.0,93565.0,0.005]
[1732103764412,0.053382,93566.0,93560.0,0.00160326]
[1732103764413,0.053384,93562.0,93560.0,0.00160326]
[1732103765519,0.053384,93561.0,93560.0,0.00160326]
[1732103766221,0.3608,93562.0,93546.0,0.005]
[1732103766419,0.10230594,93555.0,93540.0,0.05267395]
[1732103766620,0.053391,93550.0,93549.0,0.053391]
[1732103766819,0.10230594,93555.0,93540.0,0.05267395]
[1732103766820,0.10230594,93555.0,93545.0,0.414194]
[1732103767118,0.053391,93550.0,93546.0,0.053393]
[1732103767513,0.10230594,93555.0,93545.0,0.3608]
[1732103767809,0.053393,93546.0,93545.0,0.3608]
[1732103771524,0.053393,93546.0,93545.0,0.414194]
[1732103771728,0.05339,93553.0,93545.0,0.3608]
[1732103772018,0.053391,93550.0,93549.0,0.053391]
[1732103773820,0.053384,93562.0,93545.0,0.7544539]
[1732103773821,0.053393,93546.0,93545.0,0.7544539]
[1732103774024,0.053393,93546.0,93545.0,0.7536939]
[1732103774828,0.053393,93546.0,93545.0,0.8070879]
[1732103775325,0.053391,93551.0,93550.0,0.053391]
[1732103775918,0.053393,93546.0,93545.0,0.8078469]
[1732103776241,0.053393,93546.0,93545.0,0.8070869]
[1732103778526,0.053393,93546.0,93545.0,0.7536939]
[1732103779024,0.053393,93546.0,93545.0,0.7216]
[1732103779230,0.053393,93546.0,93545.0,0.3608]
[1732103779424,0.10230594,93549.0,93532.0,0.005]
[1732103779425,0.0534,93534.0,93532.0,0.005]
[1732103779723,0.053397,93540.0,93530.0,0.39216]
[1732103779724,0.053402,93531.0,93530.0,0.3608]
[1732103779928,0.053398,93538.0,93523.0,0.3608]
[1732103779929,0.053403,93529.0,93523.0,0.3608]
[1732103780228,0.053403,93529.0,93528.0,0.03257035]
[1732103780429,0.053403,93529.0,93528.0,0.00011203]
[1732103780627,0.053403,93529.0,93528.0,0.05351503]
[1732103780823,0.0534,93534.0,93528.0,0.00011203]
[1732103781020,0.0534,93534.0,93533.0,0.4142]
[1732103781421,0.053403,93529.0,93528.0,0.05351503]
[1732103781622,0.053403,93529.0,93528.0,0.00011203]
[1732103782335,0.0534,93534.0,93533.0,0.053399]
[1732103782530,0.0534,93534.0,93528.0,0.05351403]
[1732103782531,0.053403,93529.0,93528.0,0.05351403]
[1732103783036,0.05288532,93529.0,93528.0,0.05351403]
[1732103784529,0.053393,93546.0,93533.0,0.0534]
[1732103784530,0.0534,93534.0,93533.0,0.0534]
[1732103784735,0.0534,93534.0,93533.0,0.4142]
[1732103785536,0.053397,93540.0,93539.0,0.053396]
[1732103787331,0.10230594,93547.0,93533.0,0.4142]
[1732103787332,0.0534,93534.0,93533.0,0.4142]
[1732103788626,0.0534,93534.0,93533.0,0.3608]
[1732103791638,0.10230594,93540.0,93528.0,0.00011203]
[1732103791945,0.053403,93529.0,93528.0,0.00011203]
[1732103793030,0.053403,93529.0,93528.0,0.05351503]
[1732103793230,0.053401,93533.0,93532.0,0.053401]
[1732103794251,0.053401,93533.0,93531.0,0.19045926]
[1732103794442,0.053401,93533.0,93528.0,0.00011203]
[1732103794443,0.053402,93531.0,93530.0,0.19045926]
[1732103794646,0.10230594,93532.0,93529.0,0.19045926]
[1732103794647,0.053402,93530.0,93529.0,0.19045926]
[1732103794844,0.10230594,93532.0,93528.0,0.19057129]
[1732103795147,0.053403,93529.0,93528.0,0.00011203]
[1732103796547,0.053403,93529.0,93528.0,0.05351503]
[1732103798552,0.053403,93529.0,93528.0,0.08523093]
[1732103802240,0.053398,93538.0,93537.0,0.053398]
[1732103804058,0.053395,93546.0,93545.0,0.053393]
[1732103804259,0.053395,93546.0,93545.0,0.414193]
[1732103805143,0.053395,93546.0,93545.0,0.3608]
[1732103805448,0.053395,93543.0,93542.0,0.053395]
[1732103806342,0.053394,93550.0,93549.0,0.053391]
[1732103806542,0.053382,93565.0,93547.0,0.19060057]
[1732103806751,0.053387,93560.0,93559.0,0.053385]
[1732103807760,0.00160379,93567.0,93566.0,0.053382]
[1732103808062,0.00160379,93567.0,93566.0,0.414182]
[1732103808245,0.05498479,93567.0,93566.0,0.414182]
[1732103808650,0.00160379,93567.0,93566.0,0.414182]
[1732103810458,0.05498479,93567.0,93566.0,0.3608]
[1732103811653,0.05498479,93567.0,93566.0,0.414182]
[1732103812450,0.05498479,93567.0,93566.0,0.3608]
[1732103820269,0.053381,93567.0,93566.0,0.3608]
[1732103822357,0.0329,93585.0,93574.0,0.053377]
[1732103822569,0.0329,93585.0,93566.0,0.7216]
[1732103822570,0.053374,93580.0,93579.0,0.414174]
[1732103822768,0.053374,93580.0,93579.0,0.3608]
[1732103824955,0.053374,93580.0,93579.0,0.414174]
[1732103825564,0.053374,93580.0,93579.0,0.053374]
[1732103826962,0.053375,93577.0,93576.0,0.03201444]
[1732103827175,0.053375,93577.0,93576.0,0.053376]
[1732103828572,0.053375,93577.0,93575.0,0.03174595]
[1732103828573,0.053372,93583.0,93582.0,0.053371]
[1732103829267,0.053375,93579.0,93578.0,0.053374]
[1732103830371,0.053375,93579.0,93576.0,0.033]
[1732103830372,0.053367,93591.0,93576.0,0.033]
[1732103830670,0.053376,93575.0,93574.0,0.3608]
[1732103830875,0.06005218,93575.0,93574.0,0.3608]
[1732103831078,0.053381,93567.0,93560.0,0.06498825]
[1732103831371,0.053381,93567.0,93560.0,0.00160325]
[1732103831673,0.053381,93567.0,93560.0,0.05498825]
[1732103831968,0.053381,93567.0,93566.0,0.39347872]
[1732103834363,0.0600577,93567.0,93566.0,0.39347872]
[1732103834871,0.053381,93567.0,93566.0,0.39347872]
[1732103836566,0.053381,93567.0,93566.0,0.03267872]
[1732103836872,0.053381,93567.0,93560.0,0.3608]
[1732103836873,0.10230594,93571.0,93560.0,0.3608]
[1732103837065,0.053384,93561.0,93560.0,0.3608]
[1732103837979,0.10230594,93571.0,93563.0,0.053383]
[1732103838273,0.3608,93576.0,93560.0,0.3608]
[1732103838274,0.05338,93569.0,93560.0,0.3608]
[1732103838475,0.053384,93563.0,93560.0,0.3608]
[1732103838866,0.0306,93577.0,93560.0,0.3608]
[1732103839176,0.00667632,93576.0,93568.0,0.3608]
[1732103839374,0.05338,93569.0,93568.0,0.3608]
[1732103839979,0.06005645,93569.0,93568.0,0.3608]
[1732103840180,0.05338,93569.0,93568.0,0.3608]
[1732103841076,0.04810527,93583.0,93568.0,0.3608]
[1732103841077,0.0166642,93583.0,93568.0,0.3608]
[1732103841276,0.053378,93573.0,93568.0,0.3608]
[1732103841466,0.053378,93573.0,93572.0,0.053378]
[1732103841869,0.06005393,93573.0,93572.0,0.053378]
[1732103843167,0.00667593,93573.0,93572.0,0.053378]
[1732103843479,0.053372,93584.0,93583.0,0.053371]
[1732103843670,0.053372,93584.0,93583.0,0.414171]
[1732103843978,0.06004759,93584.0,93583.0,0.414171]
[1732103846276,0.00667559,93584.0,93583.0,0.414171]
[1732103847282,0.00667493,93584.0,93583.0,0.414172]
[1732103847664,0.053371,93585.0,93584.0,0.053371]
[1732103847871,0.053371,93585.0,93584.0,0.24315951]
[1732103848177,0.06672088,93585.0,93584.0,0.053371]
[1732103849476,0.01334988,93585.0,93584.0,0.053371]
[1732103849780,0.053369,93589.0,93588.0,0.053369]
[1732103854181,0.053371,93584.0,93583.0,0.39213145]
[1732103854384,0.053374,93579.0,93571.0,0.18978851]
[1732103854583,0.053378,93575.0,93574.0,0.414177]
[1732103854780,0.053378,93575.0,93574.0,0.3608]
[1732103855172,0.053378,93575.0,93566.0,0.3608]
[1732103855375,0.053387,93557.0,93556.0,0.01]
[1732103855674,0.053385,93561.0,93555.0,0.18978851]
[1732103855869,0.0635,93574.0,93554.0,0.39200418]
[1732103855870,0.053378,93572.0,93554.0,0.39200418]
[1732103856075,0.053385,93560.0,93559.0,0.053385]
[1732103856270,0.00160353,93577.0,93556.0,0.15576471]
[1732103856581,0.00667639,93576.0,93571.0,0.10230594]
[1732103856782,0.05497953,93577.0,93572.0,0.0311]
[1732103856977,0.05497953,93577.0,93576.0,0.414176]
[1732103857582,0.053367,93594.0,93593.0,0.053366]
[1732103857780,0.053366,93593.0,93592.0,0.3608]
[1732103857985,0.06004111,93593.0,93592.0,0.3608]
[1732103858580,0.053366,93593.0,93592.0,0.3608]
[1732103858799,0.06004088,93593.0,93592.0,0.3608]
[1732103859588,0.06004088,93593.0,93592.0,0.44538815]
[1732103859973,0.053366,93593.0,93592.0,0.39202115]
[1732103860282,0.06004085,93593.0,93592.0,0.03122115]
[1732103860483,0.053369,93589.0,93588.0,0.053367]
[1732103861184,0.053369,93589.0,93584.0,0.3608]
[1732103861185,0.10230594,93595.0,93584.0,0.3608]
[1732103861399,0.053371,93585.0,93584.0,0.414171]
[1732103861573,0.05226799,93585.0,93584.0,0.414171]
[1732103863883,0.05226799,93585.0,93584.0,0.3608]
[1732103867288,0.053374,93580.0,93579.0,0.18978851]
[1732103867486,0.10230594,93588.0,93576.0,0.18978851]
[1732103867681,0.053375,93577.0,93575.0,0.18978851]
[1732103867882,0.053375,93577.0,93576.0,0.55058851]
[1732103868083,0.053375,93577.0,93576.0,0.3608]
[1732103868283,0.053375,93577.0,93576.0,0.55045758]
[1732103868779,0.053375,93577.0,93576.0,0.55048429]
[1732103868980,0.053375,93577.0,93576.0,0.3608]
[1732103871788,0.053375,93577.0,93576.0,0.414176]
[1732103871981,0.053375,93577.0,93576.0,0.60386029]
[1732103873187,0.053375,93577.0,93576.0,0.414176]
[1732103873880,0.053375,93577.0,93576.0,0.3608]
[1732103875789,0.053375,93577.0,93562.0,0.01]
[1732103875790,0.053383,93563.0,93562.0,0.01]
[1732103875992,0.053385,93560.0,93559.0,0.3608]
[1732103876192,0.053385,93560.0,93559.0,0.39314596]
[1732103876395,0.053385,93560.0,93559.0,0.44653196]
[1732103876990,0.053385,93560.0,93559.0,0.39314596]
[1732103879597,0.053385,93560.0,93552.0,0.00160314]
[1732103879598,0.053389,93553.0,93552.0,0.00160314]
[1732103882591,0.083489,93553.0,93552.0,0.00160314]
[1732103884803,0.083489,93553.0,93552.0,0.36240314]
[1732103885004,0.03248089,93562.0,93552.0,0.3608]
[1732103885196,0.053384,93562.0,93561.0,0.3608]
[1732103889199,0.053384,93562.0,93553.0,0.03149981]
[1732103889200,0.053388,93554.0,93553.0,0.03149981]
[1732103889395,0.053388,93554.0,93548.0,0.053392]
[1732103889396,0.05339,93552.0,93548.0,0.053392]
[1732103889897,0.05339,93552.0,93548.0,0.0859209]
[1732103890300,0.053391,93551.0,93548.0,0.053392]
[1732103890506,0.053391,93551.0,93544.0,0.0638]
[1732103890693,0.053391,93551.0,93550.0,0.3608]
[1732103893703,0.3608,93551.0,93532.0,0.0416]
[1732103893906,0.0534,93533.0,93532.0,0.06351859]
[1732103894904,0.053401,93532.0,93531.0,0.00160373]
[1732103898906,0.053403,93529.0,93528.0,0.03207696]
[1732103901418,0.053403,93529.0,93528.0,0.08547996]
[1732103902913,0.053403,93529.0,93528.0,0.03207696]
[1732103909820,0.053403,93529.0,93528.0,0.08547996]
[1732103910019,0.053403,93529.0,93528.0,0.03207696]
[1732103915226,0.053403,93529.0,93528.0,0.05344971]
[1732103915422,0.053403,93529.0,93528.0,0.02148478]
[1732103917314,0.053403,93529.0,93528.0,0.00011203]
[1732103922211,0.053403,93529.0,93528.0,0.18940349]
[1732103923224,0.053403,93529.0,93528.0,0.00011203]
[1732103924722,0.053403,93529.0,93528.0,0.18985634]
[1732103925525,0.053403,93529.0,93528.0,0.00011203]
[1732103925839,0.00060001,93543.0,93538.0,0.053397]
[1732103926131,0.053395,93542.0,93541.0,0.3608]
[1732103928427,0.053395,93542.0,93528.0,0.36091203]
[1732103928428,0.053403,93529.0,93528.0,0.36091203]
[1732103929329,0.053403,93529.0,93528.0,0.39237803]
[1732103931834,0.053403,93529.0,93528.0,0.03157803]
[1732103932133,0.053403,93529.0,93528.0,0.39237803]
[1732103935633,0.053403,93529.0,93528.0,0.55060346]
[1732103935931,0.053403,93529.0,93528.0,0.36091203]
[1732103936825,0.15570894,93529.0,93528.0,0.36091203]
[1732103939529,0.15570894,93529.0,93528.0,0.00011203]
[1732103940230,0.053405,93525.0,93517.0,0.25286216]
[1732103940431,0.053405,93525.0,93511.0,0.3608]
[1732103940432,0.10230594,93518.0,93514.0,0.25286216]
[1732103940624,0.053412,93512.0,93511.0,0.3608]
[1732103941228,0.05352403,93512.0,93511.0,0.3616]
[1732103941636,0.05352403,93512.0,93511.0,0.39356697]
[1732103942533,0.05352403,93512.0,93511.0,0.64642913]
[1732103943024,0.05352403,93512.0,93511.0,0.39276697]
[1732103943223,0.05352403,93512.0,93511.0,0.64562913]
[1732103943423,0.05352403,93512.0,93511.0,0.39276697]
[1732103943635,0.05352403,93512.0,93511.0,0.64562913]
[1732103943830,0.05352403,93512.0,93511.0,0.39276697]
[1732103945627,0.05352403,93512.0,93511.0,0.54848591]
[1732103945940,0.05352403,93512.0,93511.0,0.80134807]
[1732103946237,0.05352403,93512.0,93511.0,0.54848591]
[1732103947540,0.05352403,93512.0,93511.0,0.39276697]
[1732103957545,0.05352403,93512.0,93511.0,0.44617997]
[1732103959440,0.05352403,93512.0,93511.0,0.39276697]
[1732103961938,0.05352403,93512.0,93511.0,0.44617997]
[1732103962339,0.053406,93524.0,93523.0,0.053404]
[1732103962743,0.06839451,93533.0,93522.0,0.3608]
[1732103963062,0.053406,93523.0,93522.0,0.3608]
[1732103963236,0.12180051,93523.0,93522.0,0.3608]
[1732103963433,0.053409,93518.0,93517.0,0.25326538]
[1732103963642,0.053411,93514.0,93513.0,0.053412]
[1732103970138,0.053412,93512.0,93511.0,0.41414084]
[1732103970749,0.053412,93512.0,93511.0,0.39276697]
[1732103971449,0.053412,93516.0,93515.0,0.053409]
[1732103971651,0.053412,93513.0,93512.0,0.25326538]
[1732103972542,0.053412,93516.0,93511.0,0.39352697]
[1732103972748,0.053412,93516.0,93513.0,0.25339853]
[1732103972955,0.053411,93514.0,93513.0,0.25339853]
[1732103976158,0.053412,93516.0,93511.0,0.6461655]
[1732103976463,0.053412,93512.0,93511.0,0.6461655]
[1732103977345,0.053412,93512.0,93511.0,0.39276697]
[1732103977951,0.053412,93512.0,93511.0,0.64616694]
[1732103978656,0.053412,93512.0,93511.0,0.39276697]
[1732103985055,0.053412,93512.0,93511.0,0.44617997]
[1732103985659,0.053412,93512.0,93511.0,0.39276697]
[1732103986654,0.053412,93512.0,93511.0,0.64616694]
[1732103987960,0.053412,93512.0,93511.0,0.6458833]
[1732103988368,0.053412,93512.0,93511.0,0.39276697]
[1732103988569,0.053412,93512.0,93511.0,0.44617997]
[1732103988870,0.053412,93516.0,93515.0,0.053409]
[1732103989067,0.053412,93516.0,93515.0,0.12180351]
[1732103993564,0.053412,93516.0,93513.0,0.25309016]
[1732103993774,0.053412,93516.0,93511.0,0.46196148]
[1732103993976,0.053412,93512.0,93511.0,0.51457448]
[1732103999384,0.053412,93512.0,93511.0,0.76766464]
[1732103999686,0.053412,93512.0,93511.0,0.51457448]
[1732104000974,0.053412,93512.0,93511.0,0.78878733]
[1732104001682,0.053412,93512.0,93511.0,0.53595149]
[1732104003285,0.053411,93518.0,93517.0,0.053407]
[1732104003487,0.053405,93530.0,93529.0,0.053403]
[1732104003781,0.1016,93538.0,93529.0,0.414203]
[1732104004087,0.0534,93540.0,93539.0,0.053397]
[1732104004783,0.0534,93540.0,93539.0,0.12179151]
[1732104005177,0.053394,93544.0,93543.0,0.053393]
[1732104005384,0.1016,93553.0,93552.0,0.053389]
[1732104005585,0.1016,93553.0,93552.0,0.12178351]
[1732104005586,0.053391,93553.0,93552.0,0.12178351]
[1732104006286,0.053386,93558.0,93557.0,0.053386]
[1732104006476,0.053386,93558.0,93557.0,0.12178051]
[1732104009587,0.053386,93558.0,93557.0,0.15302906]
[1732104009782,0.053386,93558.0,93557.0,0.08463455]
[1732104009981,0.053386,93558.0,93551.0,0.10089451]
[1732104009982,0.05339,93552.0,93551.0,0.0325]
[1732104010292,0.05339,93551.0,93550.0,0.3608]
[1732104010676,0.06006771,93551.0,93550.0,0.3608]
[1732104011285,0.05339,93551.0,93550.0,0.3608]
[1732104011487,0.06006788,93551.0,93550.0,0.3608]
[1732104011786,0.05339,93551.0,93550.0,0.3608]
[1732104011991,0.06006778,93551.0,93550.0,0.3608]
[1732104012187,0.05339,93551.0,93550.0,0.3608]
[1732104013688,0.06006786,93551.0,93550.0,0.3608]
[1732104013888,0.05339,93551.0,93550.0,0.3608]
[1732104016488,0.15573404,93551.0,93550.0,0.3608]
[1732104016688,0.053398,93538.0,93532.0,0.414201]
[1732104016900,0.0534,93533.0,93532.0,0.3608]
[1732104017188,0.053397,93542.0,93541.0,0.053395]
[1732104018182,0.053396,93541.0,93540.0,0.3608]
[1732104018381,0.053392,93549.0,93548.0,0.053392]
[1732104018785,0.0318,93562.0,93548.0,0.053392]
[1732104018786,0.053388,93555.0,93554.0,0.053387]
[1732104019885,0.053385,93564.0,93563.0,0.053382]
[1732104020092,0.053385,93564.0,93563.0,0.3608]
[1732104020297,0.05339,93555.0,93554.0,0.053386]
[1732104020995,0.05339,93555.0,93554.0,0.08458601]
[1732104022999,0.053379,93570.0,93554.0,0.03120001]
[1732104023299,0.053379,93570.0,93562.0,0.3608]
[1732104023300,0.053383,93563.0,93562.0,0.3608]
[1732104025998,0.053383,93563.0,93562.0,0.414184]
[1732104026196,0.05338,93571.0,93570.0,0.053378]
[1732104026398,0.05338,93571.0,93570.0,0.3608]
[1732104027096,0.05338,93571.0,93562.0,0.45916]
[1732104027097,0.053383,93563.0,93562.0,0.00076]
[1732104027298,0.053384,93562.0,93561.0,0.03273514]
[1732104027489,0.053387,93556.0,93555.0,0.053388]
[1732104028094,0.10234404,93568.0,93553.0,0.41372674]
[1732104028302,0.053388,93554.0,93553.0,0.3923626]
[1732104028488,0.053388,93554.0,93553.0,0.3608]
[1732104031101,0.053388,93554.0,93544.0,0.0315]
[1732104031102,0.053394,93545.0,93544.0,0.3923]
[1732104031292,0.053394,93545.0,93544.0,0.3608]
[1732104032501,0.053394,93545.0,93544.0,0.414194]
[1732104032911,0.053385,93560.0,93544.0,0.414194]
[1732104033090,0.053385,93560.0,93552.0,0.3608]
[1732104033091,0.053389,93553.0,93552.0,0.3608]
[1732104034592,0.053393,93546.0,93545.0,0.0316]
[1732104034804,0.053393,93546.0,93545.0,0.084994]
[1732104035119,0.053393,93546.0,93545.0,0.0316]
[1732104035608,0.053393,93546.0,93545.0,0.084994]
[1732104039208,0.053387,93560.0,93559.0,0.053384]
[1732104040205,0.053386,93559.0,93558.0,0.0309]
[1732104040407,0.3608,93564.0,93552.0,0.053389]
[1732104040408,0.053391,93553.0,93552.0,0.053389]
[1732104040908,0.053391,93553.0,93552.0,0.3608]
[1732104041109,0.053382,93567.0,93552.0,0.3608]
[1732104041110,0.06508191,93580.0,93552.0,0.7216]
[1732104041303,0.053375,93578.0,93574.0,0.3608]
[1732104041607,0.053376,93576.0,93575.0,0.3608]
[1732104042106,0.053376,93576.0,93575.0,1.8608]
[1732104043316,0.05338,93569.0,93568.0,0.03172439]
[1732104043508,0.15572404,93569.0,93568.0,0.03172439]
[1732104044314,0.053386,93558.0,93557.0,0.3658]
[1732104044499,0.053386,93558.0,93557.0,0.3608]
[1732104044899,0.053386,93558.0,93557.0,0.414187]
[1732104046617,0.053386,93558.0,93557.0,0.3608]
[1732104049818,0.053386,93558.0,93557.0,0.414187]
[1732104050005,0.053386,93558.0,93557.0,0.3608]
[1732104054001,0.053391,93549.0,93548.0,0.03268615]
[1732104054202,0.053392,93547.0,93546.0,0.0325]
[1732104054820,0.053393,93546.0,93540.0,0.085096]
[1732104055005,0.053393,93546.0,93545.0,0.39217554]
[1732104057319,0.053393,93546.0,93545.0,0.36090816]
[1732104057714,0.053393,93546.0,93545.0,0.41430216]
[1732104061307,0.053393,93546.0,93545.0,0.36090816]
[1732104062220,0.053393,93546.0,93545.0,0.00010816]
[1732104063023,0.053393,93546.0,93541.0,0.17372594]
[1732104063209,0.053395,93542.0,93541.0,0.17372594]
[1732104063916,0.053396,93541.0,93540.0,0.085095]
[1732104064112,0.05350416,93541.0,93540.0,0.085095]
[1732104064512,0.05350416,93541.0,93540.0,0.33793084]
[1732104064715,0.05350416,93541.0,93540.0,0.085095]
[1732104066912,0.05350416,93541.0,93540.0,0.11776112]
[1732104069021,0.00010816,93541.0,93540.0,0.22010516]
[1732104069224,0.05338,93571.0,93570.0,0.053378]
[1732104069527,0.053382,93567.0,93566.0,0.053381]
[1732104069822,0.053383,93564.0,93563.0,0.3608]
[1732104070021,0.053383,93564.0,93563.0,0.39321823]
[1732104070218,0.053383,93564.0,93563.0,0.3608]
[1732104070721,0.053379,93571.0,93555.0,0.03206357]
[1732104070916,0.053382,93567.0,93566.0,0.053381]
[1732104071423,0.053378,93573.0,93572.0,0.053377]
[1732104071826,0.053375,93579.0,93578.0,0.053373]
[1732104073518,0.053375,93577.0,93576.0,0.3608]
[1732104074130,0.10234404,93588.0,93576.0,0.3608]
[1732104074131,0.053373,93582.0,93576.0,0.3608]
[1732104074312,0.053373,93582.0,93581.0,0.053373]
[1732104075924,0.053368,93592.0,93591.0,0.053366]
[1732104076227,0.053343,93634.0,93596.0,0.053364]
[1732104076228,0.053365,93597.0,93596.0,0.053364]
[1732104076432,0.11792,93602.0,93597.0,0.053364]
[1732104076730,0.055563,93598.0,93597.0,0.053364]
[1732104078633,0.0022,93598.0,93597.0,0.053364]
[1732104080432,0.3608,93624.0,93596.0,0.0332]
[1732104080615,0.3608,93624.0,93607.0,0.3608]
[1732104080819,0.3608,93624.0,93614.0,0.053354]
[1732104081026,0.36140001,93624.0,93614.0,0.053354]
[1732104081233,0.053349,93623.0,93614.0,0.053354]
[1732104081432,0.36140001,93624.0,93614.0,0.053354]
[1732104081433,0.053354,93615.0,93614.0,0.053354]
[1732104081821,0.3608,93624.0,93609.0,0.10234404]
[1732104082018,0.053348,93626.0,93616.0,0.46314404]
[1732104082219,0.11788,93634.0,93616.0,0.46314404]
[1732104082220,0.053345,93631.0,93629.0,0.053346]
[1732104082427,0.11788,93638.0,93629.0,0.053346]
[1732104082635,0.053345,93630.0,93629.0,0.053346]
[1732104083928,0.053344,93632.0,93631.0,0.053343]
[1732104086629,0.05860488,93655.0,93631.0,0.053343]
[1732104086630,0.03217422,93653.0,93631.0,0.15568704]
[1732104086832,0.053337,93644.0,93643.0,0.053337]
[1732104088325,0.053335,93649.0,93643.0,0.3608]
[1732104088520,0.053335,93649.0,93648.0,0.053335]
[1732104090521,0.053329,93659.0,93658.0,0.053329]
[1732104091831,0.053329,93659.0,93658.0,0.01701661]
[1732104092139,0.053324,93669.0,93668.0,0.053323]
[1732104092319,0.0306,93671.0,93660.0,0.3608]
[1732104092525,0.053327,93664.0,93663.0,0.053326]
[1732104094142,0.46314404,93676.0,93670.0,0.053322]
[1732104094143,0.053322,93671.0,93670.0,0.053322]
[1732104094438,0.053327,93662.0,93661.0,0.053327]
[1732104097227,0.053327,93661.0,93647.0,0.00512593]
[1732104097426,0.053332,93653.0,93652.0,0.3608]
[1732104097632,0.10234404,93654.0,93647.0,0.00012593]
[1732104097844,0.053335,93648.0,93647.0,0.00012593]
[1732104098925,0.053335,93648.0,93647.0,0.05346093]
[1732104099125,0.053335,93648.0,93647.0,0.00012593]
[1732104099325,0.053335,93648.0,93647.0,0.05346093]
[1732104099532,0.053335,93648.0,93647.0,0.00012593]
[1732104101229,0.51647904,93648.0,93647.0,0.00012593]
[1732104101633,0.053335,93648.0,93647.0,0.00012593]
[1732104102038,0.053335,93648.0,93647.0,3.532e-05]
[1732104103247,0.05342561,93648.0,93647.0,3.532e-05]
[1732104106140,0.17782561,93648.0,93647.0,3.532e-05]
[1732104107752,0.17782561,93648.0,93633.0,0.005]